fUSD/lending_fUSD_20241225
["ID","MTS","AMOUNT","RATE_DAILY","PERIOD"]
[346613678,1735125808591,908.29,0.00010189,2]
[346613679,1735125808850,908.29,0.00010463,2]
[346613680,1735125809108,908.29,0.00010737,2]
[346613681,1735125810049,500.0,0.00010463,2]
[346613682,1735125810274,369.45,0.00010737,2]
[346613683,1735125811525,500.0,0.00010463,2]
[346613684,1735125811591,500.0,0.00010463,2]
[346613685,1735125811659,500.0,0.00010737,2]
[346613686,1735125812540,500.0,0.00010463,2]
[346613687,1735125812809,500.0,0.00010737,2]
[346613688,1735125812915,253.61608121,0.00010463,2]
[346613689,1735125814552,572.37,0.00010463,2]
[346613690,1735125814798,500.46311983,0.00010463,2]
[346613691,1735125814854,572.37,0.00010737,2]
[346613692,1735125815373,500.0,0.00010463,2]
[346613693,1735125816068,500.0,0.00010737,2]
[346613694,1735125816868,331.46914649,0.00010463,2]
[346613695,1735125818065,500.0,0.00010463,2]
[346613696,1735125818689,500.0,0.00010463,2]
[346613697,1735125820398,1151.61,0.00010463,2]
[346613698,1735125820457,1151.61,0.00010737,2]
[346613699,1735125820699,500.0,0.00010463,2]
[346613700,1735125820823,993.09,0.00010463,2]
[346613701,1735125821080,993.09,0.00010737,2]
[346613702,1735125821662,875.67,9.916e-05,2]
[346613703,1735125821995,875.67,0.0001019,2]
[346613704,1735125822289,875.67,0.00010464,2]
[346613705,1735125822564,500.0,0.00010463,2]
[346613706,1735125822609,875.67,0.00010738,2]
[346613708,1735125826639,598.0,0.00010463,2]
[346613709,1735125826694,500.0,0.00010463,2]
[346613710,1735125826895,598.0,0.00010737,2]
[346613711,1735125826941,500.0,0.00010737,2]
[346613712,1735125828919,650.87,0.00010189,2]
[346613713,1735125829180,650.87,0.00010463,2]
[346613714,1735125829320,2004.9,0.00010463,2]
[346613715,1735125829462,650.87,0.00010737,2]
[346613716,1735125829581,2004.9,0.00010737,2]
[346613717,1735125829643,500.0,0.00010463,2]
[346613718,1735125829895,500.0,0.00010737,2]
[346613719,1735125830009,500.0,0.00010463,2]
[346613720,1735125833861,795.62,9.916e-05,2]
[346613721,1735125834299,795.62,0.0001019,2]
[346613722,1735125834420,795.62,0.00010464,2]
[346613723,1735125834555,500.0,0.00010463,2]
[346613724,1735125834639,795.62,0.00010738,2]
[346613725,1735125836511,702.21,0.00010463,2]
[346613726,1735125836552,561.05,0.00010463,2]
[346613727,1735125836763,702.21,0.00010737,2]
[346613728,1735125840607,500.0,0.00010463,2]
[346613729,1735125841218,449.2,0.00010737,2]
[346613730,1735125842416,1615.05,0.00010189,2]
[346613731,1735125842761,1787.15,0.00010463,2]
[346613732,1735125842804,1615.05,0.00010463,2]
[346613733,1735125843037,1787.15,0.00010737,2]
[346613734,1735125843106,1615.05,0.00010737,2]
[346613735,1735125843633,980.68,9.916e-05,2]
[346613736,1735125843904,980.68,0.0001019,2]
[346613737,1735125844156,980.68,0.00010464,2]
[346613738,1735125844391,694.99,0.00010463,2]
[346613739,1735125844444,980.68,0.00010738,2]
[346613740,1735125844725,694.99,0.00010737,2]
[346613741,1735125845906,500.0,0.00010463,2]
[346613742,1735125846628,500.0,0.00010463,2]
[346613743,1735125848150,500.0,0.00010737,2]
[346613744,1735125857177,504.91413338,0.00010463,2]
[346613745,1735125859292,500.0,0.00010463,2]
[346613746,1735125860614,559.71,0.00010463,2]
[346613747,1735125862059,17336.28,0.00010189,2]
[346613748,1735125862213,17336.28,0.00010463,2]
[346613749,1735125862542,17336.28,0.00010737,2]
[346613750,1735125863684,500.0,0.00010463,2]
[346613751,1735125863726,3300.37,0.00010463,2]
[346613752,1735125863985,3300.37,0.00010737,2]
[346613753,1735125864399,500.0,0.00010463,2]
[346613754,1735125864641,875.65893311,0.00010909,2]
[346613755,1735125864741,500.0,0.00010463,2]
[346613756,1735125865639,500.0,0.00010463,2]
[346613757,1735125866742,500.0,0.00010463,2]
[346613758,1735125867567,500.0,0.00010463,2]
[346613759,1735125867815,500.0,0.00010737,2]
[346613760,1735125868714,500.0,0.00010463,2]
[346613761,1735125869039,224.47,0.00010737,2]
[346613762,1735125869462,2368.24,0.00010463,2]
[346613763,1735125869699,2368.24,0.00010737,2]
[346613764,1735125870583,2042.1,0.00010463,2]
[346613765,1735125870635,500.0,0.00010189,2]
[346613766,1735125870769,2042.1,0.00010737,2]
[346613767,1735125870852,500.0,0.00010463,2]
[346613768,1735125871016,500.0,0.00010463,2]
[346613769,1735125871198,500.0,0.00010737,2]
[346613770,1735125871264,500.0,0.00010737,2]
[346613771,1735125871916,500.0,0.00010463,2]
[346613772,1735125872452,500.0,0.00010737,2]
[346613773,1735125873566,500.0,0.00010463,2]
[346613774,1735125873789,500.0,0.00010737,2]
[346613775,1735125874407,500.0,9.916e-05,2]
[346613776,1735125874660,500.0,0.0001019,2]
[346613777,1735125874930,500.0,0.00010464,2]
[346613778,1735125875191,500.0,0.00010738,2]
[346613779,1735125876111,505.97046056,0.00010463,2]
[346613780,1735125878833,500.0,9.916e-05,2]
[346613781,1735125878913,549.39,0.00010463,2]
[346613782,1735125879193,500.0,0.0001019,2]
[346613783,1735125879376,1765.34,0.00010189,2]
[346613784,1735125879468,549.39,0.00010737,2]
[346613785,1735125879515,500.0,0.00010464,2]
[346613786,1735125879640,1765.34,0.00010463,2]
[346613787,1735125879692,500.0,0.00010738,2]
[346613788,1735125879907,1765.34,0.00010737,2]
[346613789,1735125880829,500.0,9.916e-05,2]
[346613790,1735125881097,500.0,0.0001019,2]
[346613791,1735125881406,500.0,0.00010464,2]
[346613792,1735125881664,500.0,0.00010738,2]
[346613793,1735125882968,500.0,0.00010463,2]
[346613794,1735125883069,500.0,0.00010737,2]
[346613795,1735125883242,247.94914577,0.00010463,2]
[346613796,1735125884096,500.0,0.00010463,2]
[346613797,1735125884338,500.0,0.00010737,2]
[346613798,1735125886879,507.94,9.916e-05,2]
[346613799,1735125886989,500.0,0.00010463,2]
[346613800,1735125887145,507.94,0.0001019,2]
[346613801,1735125887432,507.94,0.00010464,2]
[346613802,1735125887481,764.61,0.00010463,2]
[346613803,1735125887523,500.0,0.00010463,2]
[346613804,1735125887696,507.94,0.00010738,2]
[346613805,1735125887738,500.0,0.00010737,2]
[346613806,1735125887780,764.61,0.00010737,2]
[346613807,1735125888601,500.0,9.916e-05,2]
[346613808,1735125888858,500.0,0.0001019,2]
[346613809,1735125889108,500.0,0.00010464,2]
[346613810,1735125889340,500.0,0.00010738,2]
[346613811,1735125890403,500.0,0.00010463,2]
[346613812,1735125891161,224.09,0.00010679,2]
[346613813,1735125891205,500.0,0.00010463,2]
[346613814,1735125891377,1538.77,0.00010189,2]
[346613815,1735125891471,500.0,0.00010737,2]
[346613816,1735125891630,1538.77,0.00010463,2]
[346613817,1735125891878,1538.77,0.00010737,2]
[346613818,1735125892785,500.0,0.00010463,2]
[346613819,1735125893320,500.0,0.00010737,2]
[346613820,1735125894226,501.7378449,0.00010463,2]
[346613821,1735125895416,500.0,9.916e-05,2]
[346613822,1735125895672,500.0,0.0001019,2]
[346613823,1735125895949,500.0,0.00010464,2]
[346613824,1735125896049,503.49220211,0.00010463,2]
[346613825,1735125896264,500.0,0.00010738,2]
[346613826,1735125896353,1490.43,0.00010463,2]
[346613827,1735125896604,1490.43,0.00010737,2]
[346613828,1735125897594,500.0,0.00010463,2]
[346613829,1735125897644,500.0,0.00010463,2]
[346613830,1735125897975,500.0,0.00010737,2]
[346613831,1735125898024,500.0,0.00010737,2]
[346613832,1735125900348,1505.41,0.00010463,2]
[346613833,1735125900772,1030.86,9.916e-05,2]
[346613834,1735125901042,1030.86,0.0001019,2]
[346613835,1735125901284,1030.86,0.00010464,2]
[346613836,1735125901548,1030.86,0.00010738,2]
[346613837,1735125901673,500.0,0.00010463,2]
[346613838,1735125901727,1505.41,0.00010737,2]
[346613839,1735125901996,711.22,0.00010189,2]
[346613840,1735125902261,711.22,0.00010463,2]
[346613841,1735125902695,711.22,0.00010737,2]
[346613842,1735125903661,160.49389159,0.00018,30]
[346613843,1735125907345,500.0,0.00010463,2]
[346613844,1735125907447,500.0,0.00010737,2]
[346613845,1735125908360,500.0,9.916e-05,2]
[346613846,1735125908607,500.0,0.0001019,2]
[346613847,1735125908864,500.0,0.00010464,2]
[346613848,1735125908913,503.72671544,0.00010463,2]
[346613849,1735125910147,500.0,0.00010738,2]
[346613850,1735125910419,7637.64,0.00010463,2]
[346613851,1735125910624,500.0,0.00010463,2]
[346613852,1735125910683,7637.64,0.00010737,2]
[346613853,1735125910890,500.0,0.00010737,2]
[346613854,1735125912795,500.0,0.00010463,2]
[346613855,1735125914617,3087.93,0.00010189,2]
[346613856,1735125914695,500.0,0.00010463,2]
[346613857,1735125914867,3087.93,0.00010463,2]
[346613858,1735125915108,3087.93,0.00010737,2]
[346613859,1735125916871,559.38,9.916e-05,2]
[346613860,1735125917114,559.38,0.0001019,2]
[346613861,1735125917402,559.38,0.00010464,2]
[346613862,1735125918835,559.38,0.00010738,2]
[346613863,1735125919647,500.0,9.916e-05,2]
[346613864,1735125919951,500.0,0.0001019,2]
[346613865,1735125920549,500.0,0.00010464,2]
[346613866,1735125920818,500.0,0.00010738,2]
[346613867,1735125921725,538.73,0.00010463,2]
[346613868,1735125921976,538.73,0.00010737,2]
[346613869,1735125922301,500.0,0.00010463,2]
[346613870,1735125924592,500.0,0.00010463,2]
[346613871,1735125925792,865.28,0.00010463,2]
[346613872,1735125926091,865.28,0.00010737,2]
[346613873,1735125926873,500.0,0.00010189,2]
[346613874,1735125927864,514.79177244,0.00010463,2]
[346613875,1735125928307,500.0,0.00010463,2]
[346613876,1735125928574,500.0,0.00010737,2]
[346613877,1735125928666,588.45,9.916e-05,2]
[346613878,1735125928799,1101.0,0.00010682,2]
[346613879,1735125929048,588.45,0.0001019,2]
[346613880,1735125929290,588.45,0.00010464,2]
[346613881,1735125929535,588.45,0.00010738,2]
[346613882,1735125929664,500.0,0.00010463,2]
[346613883,1735125932694,613.55,0.00010463,2]
[346613884,1735125932950,613.55,0.00010737,2]
[346613885,1735125934164,500.0,0.00010463,2]
[346613886,1735125934414,500.0,0.00010737,2]
[346613887,1735125937358,1009.79,9.916e-05,2]
[346613888,1735125937618,1009.79,0.0001019,2]
[346613889,1735125937851,500.0,0.00010463,2]
[346613890,1735125937901,1009.79,0.00010464,2]
[346613891,1735125938123,1009.79,0.00010738,2]
[346613892,1735125939196,500.0,0.00010189,2]
[346613893,1735125939447,500.0,0.00010463,2]
[346613894,1735125939691,500.0,0.00010737,2]
[346613895,1735125941701,500.0,0.00010463,2]
[346613896,1735125943679,522.48426861,0.00010463,2]
[346613897,1735125947069,500.0,0.00010463,2]
[346613898,1735125947175,864.79,0.00010463,2]
[346613899,1735125947689,864.79,0.00010737,2]
[346613900,1735125948189,500.0,0.00010463,2]
[346613901,1735125948667,500.0,0.00010737,2]
[346613902,1735125952827,1032.71,0.00010189,2]
[346613903,1735125953086,1032.71,0.00010463,2]
[346613904,1735125953335,1032.71,0.00010737,2]
[346613905,1735125958226,500.0,0.00010463,2]
[346613906,1735125958483,500.0,0.00010737,2]
[346613907,1735125958803,500.0,0.00010463,2]
[346613908,1735125959493,500.0,0.00010737,2]
[346613909,1735125959836,1116.26,9.916e-05,2]
[346613910,1735125960084,1116.26,0.0001019,2]
[346613911,1735125960355,1116.26,0.00010464,2]
[346613912,1735125960588,1116.26,0.00010738,2]
[346613913,1735125960811,500.0,0.00010463,2]
[346613914,1735125961058,500.0,0.00010737,2]
[346613915,1735125961113,1286.81,0.00010189,2]
[346613916,1735125961374,1286.81,0.00010463,2]
[346613917,1735125961536,500.0,0.00010463,2]
[346613918,1735125961622,1286.81,0.00010737,2]
[346613919,1735125961769,500.0,0.00010737,2]
[346613920,1735125965630,500.0,0.00010463,2]
[346613921,1735125966336,500.0,0.00010737,2]
[346613922,1735125970086,782.78,0.00010189,2]
[346613923,1735125970312,782.78,0.00010463,2]
[346613924,1735125970611,782.78,0.00010737,2]
[346613925,1735125970728,500.0,0.00010463,2]
[346613926,1735125972695,500.0,0.00010737,2]
[346613927,1735125974576,14988.0,0.00010792,2]
[346613928,1735125976306,1100.64,9.916e-05,2]
[346613929,1735125976803,1100.64,0.0001019,2]
[346613930,1735125976874,1100.64,0.00010464,2]
[346613931,1735125976942,1100.64,0.00010738,2]
[346613932,1735125979873,500.0,0.00010463,2]
[346613933,1735125980155,500.0,0.00010737,2]
[346613934,1735125982858,500.0,0.00010463,2]
[346613935,1735125983110,500.0,0.00010737,2]
[346613936,1735125985350,3763.28,0.00010189,2]
[346613937,1735125985611,3763.28,0.00010463,2]
[346613938,1735125985882,3763.28,0.00010737,2]
[346613939,1735125986223,500.0,0.00010463,2]
[346613940,1735125986487,500.0,0.00010737,2]
[346613941,1735125990154,500.0,0.00010463,2]
[346613942,1735125990405,500.0,0.00010737,2]
[346613943,1735125990633,508.83,9.916e-05,2]
[346613944,1735125991971,927.95,0.00010463,2]
[346613945,1735125992335,729.12,0.00010463,2]
[346613946,1735125992585,729.12,0.00010737,2]
[346613947,1735125992636,500.0,9.916e-05,2]
[346613948,1735125992686,927.95,0.00010737,2]
[346613949,1735125992905,500.0,0.0001019,2]
[346613950,1735125993155,500.0,0.00010464,2]
[346613951,1735125993414,500.0,0.00010738,2]
[346613952,1735125993867,451.87608039,0.00010463,2]
[346613988,1735126231578,-514.3,9.916e-05,2]
[346613989,1735126231588,-713.41,9.916e-05,2]
[346613990,1735126231599,-500.0,9.916e-05,2]
[346613991,1735126231608,-500.0,9.916e-05,2]
[346613992,1735126231619,-510.27,9.916e-05,2]
[346613993,1735126231629,-500.0,9.916e-05,2]
[346613994,1735126231639,-183.75555813,9.916e-05,2]
[346613995,1735126231651,-316.24444187,9.916e-05,2]
[346613996,1735126231660,-500.0,9.916e-05,2]
[346613997,1735126231669,-500.0,9.916e-05,2]
[346613998,1735126231679,-307.66301561,9.916e-05,2]
[346613999,1735126231688,-967.19,9.916e-05,2]
[346614000,1735126231698,-500.0,9.916e-05,2]
[346614001,1735126231707,-500.0,9.916e-05,2]
[346614002,1735126231716,-500.0,9.916e-05,2]
[346614003,1735126231726,-500.0,9.916e-05,2]
[346614004,1735126231735,-615.99,9.916e-05,2]
[346614005,1735126231745,-500.0,9.916e-05,2]
[346614006,1735126231754,-500.0,9.916e-05,2]
[346614007,1735126231763,-504.16,9.916e-05,2]
[346614008,1735126231773,-500.0,9.916e-05,2]
[346614009,1735126231782,-602.73,9.916e-05,2]
[346614010,1735126231792,-594.0,9.916e-05,2]
[346614011,1735126231801,-500.0,9.916e-05,2]
[346614012,1735126231811,-728.3,9.916e-05,2]
[346614013,1735126231820,-500.0,9.916e-05,2]
[346614014,1735126231830,-500.0,9.916e-05,2]
[346614015,1735126231839,-628.57,0.00010137,2]
[346614016,1735126231849,-514.3,0.0001019,2]
[346614017,1735126231860,-713.41,0.0001019,2]
[346614018,1735126231870,-510.27,0.0001019,2]
[346614019,1735126231879,-428.63306899,0.0001019,2]
[346614020,1735126231888,-500.0,0.0001019,2]
[346614021,1735126231899,-500.0,0.0001019,2]
[346614022,1735126231909,-967.19,0.0001019,2]
[346614023,1735126231919,-500.0,0.0001019,2]
[346614024,1735126231929,-500.0,0.0001019,2]
[346614025,1735126231939,-500.0,0.0001019,2]
[346614026,1735126231948,-500.0,0.0001019,2]
[346614027,1735126231957,-615.99,0.0001019,2]
[346614028,1735126231967,-500.0,0.0001019,2]
[346614029,1735126231977,-504.16,0.0001019,2]
[346614030,1735126231987,-500.0,0.0001019,2]
[346614031,1735126231997,-594.0,0.0001019,2]
[346614032,1735126232007,-500.0,0.0001019,2]
[346614033,1735126232016,-728.3,0.0001019,2]
[346614034,1735126232025,-500.0,0.0001019,2]
[346614035,1735126232035,-500.0,0.0001019,2]
[346614037,1735126232045,-250.0,0.00010256,2]
[346614038,1735126232054,-2000.0,0.00010307,2]
[346614040,1735126232064,-1138.40523616,0.00010373,2]
[346614043,1735126232089,-1486.42191,0.00010373,2]
[346614044,1735126232154,-387.0,0.00010373,2]
[346614240,1735126237562,-895.36788805,0.00010373,2]
[346614241,1735126237574,-5950.57660314,0.00010373,2]
[346614242,1735126237682,-2067.87797767,0.00010373,2]
[346614243,1735126237694,-2002.73746387,0.00010373,2]
[346614244,1735126237731,-3139.77717968,0.00010373,2]
[346614245,1735126237743,-15044.397525,0.00010373,2]
[346614246,1735126237755,-4111.190088,0.00010373,2]
[346614247,1735126237766,-49368.2821376,0.00010373,2]
[346614248,1735126237885,-17477.90798625,0.00010373,2]
[346614250,1735126237894,-294.71391961,0.00010463,2]
[346614251,1735126237903,-500.0,0.00010463,2]
[346614252,1735126237912,-974.94,0.00010463,2]
[346614253,1735126237922,-500.0,0.00010463,2]
[346614254,1735126237936,-252.46302215,0.00010463,2]
[346614264,1735126239741,-678.60308867,9.916e-05,2]
[346614265,1735126239904,-60.34691133,9.916e-05,2]
[346614266,1735126239914,-738.95,0.0001019,2]
[346614267,1735126239923,-247.53697785,0.00010463,2]
[346614268,1735126239933,-1258.25,0.00010463,2]
[346614269,1735126239943,-502.1,0.00010463,2]
[346614270,1735126239954,-500.0,0.00010463,2]
[346614271,1735126239965,-614.37098913,0.00010463,2]
[346614272,1735126239978,-111.90901087,0.00010463,2]
[346614273,1735126239987,-239.18886747,0.00010463,2]
[346614296,1735126242795,-260.81113253,0.00010463,2]
[346614297,1735126242805,-562.93,0.00010463,2]
[346614298,1735126242815,-500.0,0.00010463,2]
[346614299,1735126242824,-3182.26,0.00010463,2]
[346614300,1735126242833,-754.78,0.00010463,2]
[346614301,1735126242843,-500.0,0.00010463,2]
[346614302,1735126242852,-697.4,0.00010463,2]
[346614303,1735126242862,-500.0,0.00010463,2]
[346614304,1735126242872,-1008.11,0.00010463,2]
[346614305,1735126242881,-2588.08,0.00010463,2]
[346614306,1735126242890,-1226.86,0.00010463,2]
[346614307,1735126242899,-95.16885055,0.00010463,2]
[346614308,1735126242911,-404.83114945,0.00010463,2]
[346614309,1735126242920,-1055.64,0.00010463,2]
[346614310,1735126242930,-995.61,0.00010463,2]
[346614311,1735126242940,-1140.1,0.00010463,2]
[346614312,1735126242950,-500.0,0.00010463,2]
[346614313,1735126242959,-500.0,0.00010463,2]
[346614314,1735126242968,-601.31805449,0.00010463,2]
[346614315,1735126242977,-753.27,0.00010463,2]
[346614316,1735126242987,-1155.89,0.00010463,2]
[346614317,1735126242996,-500.0,0.00010463,2]
[346614318,1735126243005,-2170.89,0.00010463,2]
[346614319,1735126243014,-500.0,0.00010463,2]
[346614320,1735126243023,-539.06438514,0.00010463,2]
[346614321,1735126243035,-1010.97561486,0.00010463,2]
[346614322,1735126243045,-640.95,0.00010463,2]
[346614323,1735126243054,-500.0,0.00010463,2]
[346614324,1735126243063,-256.83844156,0.00010463,2]
[346614325,1735126243072,-500.0,0.00010463,2]
[346614326,1735126243082,-58.48791618,0.00010463,2]
[346614327,1735126243108,-1563.92208382,0.00010463,2]
[346614328,1735126243118,-500.0,0.00010463,2]
[346614329,1735126243128,-478.31733956,0.00010463,2]
[346614330,1735126243152,-500.0,0.00010463,2]
[346614331,1735126243161,-500.0,0.00010463,2]
[346614332,1735126243172,-500.0,0.00010463,2]
[346614333,1735126243183,-500.0,0.00010463,2]
[346614335,1735126243193,-500.0,0.00010463,2]
[346614337,1735126243202,-500.0,0.00010463,2]
[346614339,1735126243211,-1379.96,0.00010463,2]
[346614340,1735126243222,-500.0,0.00010463,2]
[346614341,1735126243231,-500.0,0.00010463,2]
[346614342,1735126243240,-568.19,0.00010463,2]
[346614343,1735126243249,-518.97404784,0.00010463,2]
[346614344,1735126243259,-995.76,0.00010463,2]
[346614345,1735126243268,-500.0,0.00010463,2]
[346614346,1735126243278,-258.99172813,0.00010463,2]
[346614347,1735126243287,-553.77,0.00010463,2]
[346614348,1735126243296,-500.0,0.00010463,2]
[346614349,1735126243305,-564.44,0.00010463,2]
[346614350,1735126243315,-563.70867745,0.00010463,2]
[346614351,1735126243324,-500.0,0.00010463,2]
[346614352,1735126243334,-500.0,0.00010463,2]
[346614353,1735126243343,-500.0,0.00010463,2]
[346614354,1735126243352,-500.0,0.00010463,2]
[346614355,1735126243362,-500.0,0.00010463,2]
[346614356,1735126243371,-372.20150205,0.00010463,2]
[346614357,1735126243387,-500.0,0.00010463,2]
[346614358,1735126243403,-500.0,0.00010463,2]
[346614359,1735126243415,-500.0,0.00010463,2]
[346614360,1735126243426,-700.43,0.00010463,2]
[346614361,1735126243435,-881.08,0.00010463,2]
[346614362,1735126243444,-942.64,0.00010463,2]
[346614363,1735126243454,-500.0,0.00010463,2]
[346614364,1735126243463,-481.10410441,0.00010463,2]
[346614365,1735126243473,-500.0,0.00010463,2]
[346614366,1735126243482,-248.2716998,0.00010463,2]
[346614367,1735126243491,-1188.68,0.00010463,2]
[346614368,1735126243501,-500.0,0.00010463,2]
[346614369,1735126243510,-500.0,0.00010463,2]
[346614370,1735126243519,-500.0,0.00010463,2]
[346614371,1735126243528,-624.18424654,0.00010463,2]
[346614372,1735126243538,-996.71,0.00010463,2]
[346614373,1735126243547,-500.0,0.00010463,2]
[346614374,1735126243556,-500.0,0.00010463,2]
[346614375,1735126243565,-530.86,0.00010463,2]
[346614376,1735126243575,-500.0,0.00010463,2]
[346614377,1735126243584,-620.95,0.00010463,2]
[346614378,1735126243594,-407.44510465,0.00010463,2]
[346614379,1735126243603,-516.44,0.00010463,2]
[346614380,1735126243612,-668.36,0.00010463,2]
[346614381,1735126243622,-500.0,0.00010463,2]
[346614382,1735126243631,-500.0,0.00010463,2]
[346614383,1735126243653,-500.0,0.00010463,2]
[346614384,1735126243662,-500.0,0.00010463,2]
[346614385,1735126243672,-849.12,0.00010463,2]
[346614386,1735126243681,-500.0,0.00010463,2]
[346614387,1735126243690,-500.0,0.00010463,2]
[346614388,1735126243699,-500.0,0.00010463,2]
[346614389,1735126243708,-514.3,0.00010464,2]
[346614390,1735126243718,-713.41,0.00010464,2]
[346614391,1735126243727,-510.27,0.00010464,2]
[346614392,1735126243736,-500.0,0.00010464,2]
[346614393,1735126243745,-500.0,0.00010464,2]
[346614394,1735126243755,-967.19,0.00010464,2]
[346614395,1735126243764,-500.0,0.00010464,2]
[346614396,1735126243773,-500.0,0.00010464,2]
[346614397,1735126243783,-500.0,0.00010464,2]
[346614398,1735126243792,-162.45720057,0.00010464,2]
[346614399,1735126243801,-615.99,0.00010464,2]
[346614400,1735126243810,-500.0,0.00010464,2]
[346614401,1735126243819,-504.16,0.00010464,2]
[346614402,1735126243829,-500.0,0.00010464,2]
[346614403,1735126243838,-594.0,0.00010464,2]
[346614404,1735126243848,-500.0,0.00010464,2]
[346614405,1735126243857,-728.3,0.00010464,2]
[346614406,1735126243867,-500.0,0.00010464,2]
[346614407,1735126243877,-500.0,0.00010464,2]
[346614408,1735126243890,-738.95,0.00010464,2]
[346614409,1735126243901,-635.0,0.00010682,2]
[346614410,1735126243911,-150.0,0.00010682,2]
[346614411,1735126243920,-746.59,0.00010737,2]
[346614412,1735126243929,-974.94,0.00010737,2]
[346614413,1735126243938,-500.0,0.00010737,2]
[346614414,1735126243947,-500.0,0.00010737,2]
[346614415,1735126243957,-1258.25,0.00010737,2]
[346614416,1735126243966,-502.1,0.00010737,2]
[346614417,1735126243975,-500.0,0.00010737,2]
[346614418,1735126243985,-726.28,0.00010737,2]
[346614419,1735126243994,-500.0,0.00010737,2]
[346614420,1735126244004,-562.93,0.00010737,2]
[346614421,1735126244013,-500.0,0.00010737,2]
[346614422,1735126244022,-3182.26,0.00010737,2]
[346614423,1735126244032,-754.78,0.00010737,2]
[346614424,1735126244041,-500.0,0.00010737,2]
[346614425,1735126244050,-697.4,0.00010737,2]
[346614426,1735126244059,-500.0,0.00010737,2]
[346614427,1735126244069,-1008.11,0.00010737,2]
[346614428,1735126244078,-2588.08,0.00010737,2]
[346614429,1735126244088,-1226.86,0.00010737,2]
[346614430,1735126244097,-500.0,0.00010737,2]
[346614431,1735126244107,-1055.64,0.00010737,2]
[346614432,1735126244117,-995.61,0.00010737,2]
[346614433,1735126244127,-1140.1,0.00010737,2]
[346614434,1735126244140,-500.0,0.00010737,2]
[346614435,1735126244151,-500.0,0.00010737,2]
[346614436,1735126244161,-753.27,0.00010737,2]
[346614437,1735126244173,-1155.89,0.00010737,2]
[346614438,1735126244183,-2170.89,0.00010737,2]
[346614439,1735126244434,-1550.04,0.00010737,2]
[346614440,1735126244448,-640.95,0.00010737,2]
[346614441,1735126244459,-1622.41,0.00010737,2]
[346614442,1735126244468,-500.0,0.00010737,2]
[346614443,1735126244478,-500.0,0.00010737,2]
[346614444,1735126244488,-500.0,0.00010737,2]
[346614445,1735126244499,-1379.96,0.00010737,2]
[346614446,1735126244509,-568.19,0.00010737,2]
[346614447,1735126244519,-995.76,0.00010737,2]